fUST/lending_fUST_20241227
["ID","MTS","AMOUNT","RATE_DAILY","PERIOD"]
[346818006,1735306242610,-151.0,0.00010959,2]
[346818007,1735306242620,-151.0,0.00010959,2]
[346818008,1735306242630,-626.06979097,0.00011,2]
[346818009,1735306242639,-721.57,0.00011,2]
[346818010,1735306242746,-1000.0,0.00011161,2]
[346818012,1735306242756,-278.52525293,0.00011175,2]
[346818014,1735306242766,-2346.78,0.00011176,2]
[346818016,1735306242775,-151.0,0.00011176,2]
[346818018,1735306242785,-151.0,0.00011176,2]
[346818021,1735306242794,-2924.71,0.00011176,2]
[346818024,1735306242804,-151.0,0.00011176,2]
[346818027,1735306242813,-249.549576,0.00011176,2]
[346818030,1735306242822,-249.549576,0.00011176,2]
[346818032,1735306242831,-1086.84,0.00011176,2]
[346818034,1735306242840,-151.129794,0.00011176,2]
[346818037,1735306242849,-500.0,0.00011176,2]
[346818040,1735306242859,-621.48,0.00011176,2]
[346818042,1735306242868,-500.0,0.00011176,2]
[346818044,1735306242878,-500.0,0.00011176,2]
[346818046,1735306242887,-500.0,0.00011176,2]
[346818048,1735306242896,-500.0,0.00011176,2]
[346818050,1735306242905,-151.0,0.00011176,2]
[346818052,1735306242914,-151.0,0.00011176,2]
[346818054,1735306242923,-500.0,0.00011176,2]
[346818056,1735306242933,-885.34,0.00011177,2]
[346818058,1735306242942,-500.0,0.00011177,2]
[346818060,1735306242951,-500.0,0.00011177,2]
[346818063,1735306242960,-500.0,0.00011177,2]
[346818066,1735306242970,-500.0,0.00011177,2]
[346818069,1735306242979,-500.0,0.00011177,2]
[346818071,1735306242988,-500.0,0.00011177,2]
[346818074,1735306242998,-500.0,0.00011177,2]
[346818076,1735306243007,-500.0,0.00011177,2]
[346818078,1735306243016,-500.0,0.00011177,2]
[346818080,1735306243025,-546.21727357,0.00011177,2]
[346818082,1735306243035,-500.0,0.00011177,2]
[346818084,1735306243045,-500.0,0.00011177,2]
[346818086,1735306243054,-500.0,0.00011177,2]
[346818088,1735306243063,-144.79139435,0.00011177,2]
[346818091,1735306243077,-355.20860565,0.00011177,2]
[346818093,1735306243087,-2355.72096345,0.00011177,2]
[346818120,1735306243348,-500.0,9.533e-05,2]
[346818122,1735306243358,-500.0,9.807e-05,2]
[346818124,1735306243367,-500.0,0.00010081,2]
[346818126,1735306243377,-551.42,0.00010354,2]
[346818128,1735306243388,-500.0,0.00010355,2]
[346818130,1735306243397,-500.0,0.00010629,2]
[346818132,1735306243407,-500.0,0.00010903,2]
[346818134,1735306243416,-145.44903655,0.00011177,2]
[346818136,1735306243425,-500.0,0.00011177,2]
[346818138,1735306243435,-802.69729345,0.00011177,2]
[346818141,1735306243451,-203.68270655,0.00011177,2]
[346818143,1735306243462,-9636.11,0.00011177,2]
[346818145,1735306243471,-500.0,0.00011177,2]
[346818147,1735306243480,-500.0,0.00011177,2]
[346818149,1735306243489,-153.0,0.00011178,2]
[346818151,1735306243499,-394.0,0.00011332,2]
[346818153,1735306243508,-399.408,0.00011332,2]
[346818155,1735306243518,-166.0,0.00011352,2]
[346818157,1735306243527,-153.0,0.0001137,2]
[346818159,1735306243537,-153.4628106,0.0001137,2]
[346818161,1735306243546,-214.2645371,0.0001137,2]
[346818163,1735306243555,-321.4358717,0.0001137,2]
[346818165,1735306243566,-153.0,0.0001137,2]
[346818167,1735306243576,-214.2645371,0.0001137,2]
[346818169,1735306243585,-153.4628105,0.0001137,2]
[346818171,1735306243594,-214.2645371,0.0001137,2]
[346818173,1735306243603,-153.0,0.0001137,2]
[346818175,1735306243613,-153.4628105,0.0001137,2]
[346818177,1735306243622,-166.0,0.00011378,2]
[346818179,1735306243632,-156.0,0.00011378,2]
[346818181,1735306243641,-166.0,0.00011378,2]
[346818183,1735306243650,-166.0,0.00011378,2]
[346818185,1735306243659,-420.0,0.00011419,2]
[346818187,1735306243668,-2346.78,0.0001145,2]
[346818189,1735306243678,-2924.71,0.0001145,2]
[346818191,1735306243687,-151.0,0.0001145,2]
[346818193,1735306243697,-1086.84,0.0001145,2]
[346818196,1735306243707,-500.0,0.0001145,2]
[346818198,1735306243716,-621.48,0.0001145,2]
[346818200,1735306243725,-500.0,0.0001145,2]
[346818201,1735306243735,-500.0,0.0001145,2]
[346818204,1735306243744,-500.0,0.0001145,2]
[346818205,1735306243754,-475.40338711,0.0001145,2]
[346818208,1735306243763,-151.0,0.0001145,2]
[346818210,1735306243772,-151.0,0.0001145,2]
[346818211,1735306243782,-500.0,0.0001145,2]
[346818214,1735306243791,-885.34,0.00011451,2]
[346818216,1735306243802,-500.0,0.00011451,2]
[346818218,1735306243811,-500.0,0.00011451,2]
[346818220,1735306243820,-500.0,0.00011451,2]
[346818222,1735306243830,-500.0,0.00011451,2]
[346818224,1735306243839,-500.0,0.00011451,2]
[346818226,1735306243848,-500.0,0.00011451,2]
[346818228,1735306243857,-257.990076,0.00011451,2]
[346818230,1735306243866,-500.0,0.00011451,2]
[346818232,1735306243875,-151.0,0.00011451,2]
[346818234,1735306243884,-500.0,0.00011451,2]
[346818236,1735306243894,-249.549576,0.00011451,2]
[346818238,1735306243902,-249.549576,0.00011451,2]
[346818240,1735306243912,-500.0,0.00011451,2]
[346818242,1735306243921,-500.0,0.00011451,2]
[346818243,1735306243930,-367.13382595,0.00011451,2]
[346818246,1735306243939,-500.0,0.00011451,2]
[346818247,1735306243948,-2501.17,0.00011451,2]
[346818250,1735306243958,-500.0,0.00011451,2]
[346818251,1735306243968,-1006.38,0.00011451,2]
[346818253,1735306243978,-9636.11,0.00011451,2]
[346818256,1735306243989,-500.0,0.00011451,2]
[346818258,1735306243998,-500.0,0.00011451,2]
[346818260,1735306244011,-153.722438,0.00011722,2]
[346818262,1735306244022,-151.0,0.00011722,2]
[346818264,1735306244033,-185.088009,0.00011722,2]
[346818266,1735306244042,-185.088009,0.00011722,2]
[346818268,1735306244051,-151.0,0.00011723,2]
[346818269,1735306244060,-151.0,0.00011723,2]
[346818271,1735306244070,-323.460778,0.00011724,2]
[346818274,1735306244079,-151.0,0.00011724,2]
[346818275,1735306244089,-2346.78,0.00011724,2]
[346818278,1735306244101,-2924.71,0.00011724,2]
[346818280,1735306244110,-1086.84,0.00011724,2]
[346818281,1735306244119,-500.0,0.00011724,2]
[346818283,1735306244129,-621.48,0.00011724,2]
[346818286,1735306244143,-500.0,0.00011724,2]
[346818287,1735306244153,-500.0,0.00011724,2]
[346818290,1735306244163,-500.0,0.00011724,2]
[346818291,1735306244172,-699.968967,0.00011725,2]
[346818294,1735306244183,-885.34,0.00011725,2]
[346818295,1735306244192,-699.968967,0.00011725,2]
[346818297,1735306244201,-500.0,0.00011725,2]
[346818300,1735306244214,-323.460778,0.00011725,2]
[346818302,1735306244224,-433.10215123,0.00011725,2]
[346818303,1735306244233,-500.0,0.00011725,2]
[346818305,1735306244243,-500.0,0.00011725,2]
[346818307,1735306244252,-500.0,0.00011725,2]
[346818309,1735306244261,-500.0,0.00011725,2]
[346818312,1735306244271,-500.0,0.00011725,2]
[346818314,1735306244282,-500.0,0.00011725,2]
[346818315,1735306244291,-2501.17,0.00011725,2]
[346818318,1735306244301,-500.0,0.00011725,2]
[346818319,1735306244310,-1006.38,0.00011725,2]
[346818321,1735306244319,-9636.11,0.00011725,2]
[346818323,1735306244329,-584.47436573,0.00011725,2]
[346818326,1735306244339,-500.0,0.00011725,2]
[346818328,1735306244349,-183.58420123,0.0001179,2]
[346818330,1735306244358,-151.0,0.0001193,2]
[346818332,1735306244367,-1200.0,0.0001193,2]
[346818333,1735306244377,-500.0,0.0001193,2]
[346818335,1735306244386,-151.0,0.00011997,2]
[346818337,1735306244396,-151.0,0.00011997,2]
[346818339,1735306244405,-151.0,0.00011997,2]
[346818341,1735306244414,-2346.78,0.00011998,2]
[346818343,1735306244424,-2924.71,0.00011998,2]
[346818345,1735306244433,-1086.84,0.00011998,2]
[346818347,1735306244443,-500.0,0.00011998,2]
[346818349,1735306244453,-621.48,0.00011998,2]
[346818351,1735306244462,-500.0,0.00011998,2]
[346818354,1735306244472,-500.0,0.00011998,2]
[346818355,1735306244481,-500.0,0.00011998,2]
[346818357,1735306244491,-885.34,0.00011999,2]
[346818359,1735306244501,-500.0,0.00011999,2]
[346818361,1735306244510,-500.0,0.00011999,2]
[346818364,1735306244520,-500.0,0.00011999,2]
[346818365,1735306244530,-500.0,0.00011999,2]
[346818368,1735306244542,-249.549576,0.00011999,2]
[346818369,1735306244551,-249.549576,0.00011999,2]
[346818371,1735306244560,-500.0,0.00011999,2]
[346818374,1735306244570,-500.0,0.00011999,2]
[346818375,1735306244580,-2501.17,0.00011999,2]
[346818377,1735306244589,-1006.38,0.00011999,2]
[346818379,1735306244599,-9636.11,0.00011999,2]
[346818382,1735306244617,-9318.22773675,0.00012,2]
[346818385,1735306244628,-153.4628105,0.00012192,2]
[346818387,1735306244638,-214.2645371,0.00012192,2]
[346818389,1735306244648,-153.3554758,0.00012192,2]
[346818391,1735306244657,-306.0,0.00012192,2]
[346818393,1735306244667,-214.1010006,0.00012192,2]
[346818395,1735306244677,-151.0,0.00012192,2]
[346818397,1735306244687,-185.088009,0.00012192,2]
[346818399,1735306244697,-185.088009,0.00012192,2]
[346818401,1735306244706,-699.968967,0.00012272,2]
[346818403,1735306244716,-699.968967,0.00012272,2]
[346818405,1735306244725,-2346.78,0.00012272,2]
[346818407,1735306244734,-2924.71,0.00012272,2]
[346818409,1735306244744,-1086.84,0.00012272,2]
[346818411,1735306244753,-500.0,0.00012272,2]
[346818413,1735306244763,-621.48,0.00012272,2]
[346818415,1735306244772,-500.0,0.00012272,2]
[346818417,1735306244783,-580.45,0.00012272,2]
[346818419,1735306244793,-500.0,0.00012272,2]
[346818421,1735306244802,-885.34,0.00012273,2]
[346818423,1735306244812,-151.0,0.00012273,2]
[346818425,1735306244821,-500.0,0.00012273,2]
[346818427,1735306244831,-323.460778,0.00012273,2]
[346818429,1735306244840,-645.35,0.00012273,2]
[346818431,1735306244849,-500.0,0.00012273,2]
[346818433,1735306244859,-157.96,0.00012273,2]
[346818436,1735306244869,-179.746986,0.00012273,2]
[346818438,1735306244878,-295.48,0.00012273,2]
[346818440,1735306244888,-574.52,0.00012273,2]
[346818442,1735306244897,-2501.17,0.00012273,2]
[346818444,1735306244906,-1006.38,0.00012273,2]
[346818446,1735306244916,-151.0,0.00012273,2]
[346818448,1735306244925,-9636.11,0.00012273,2]
[346818450,1735306244934,-185.541004,0.00012273,2]
[346818452,1735306244944,-467.592,0.00012281,2]
[346818454,1735306244953,-228.0,0.0001231,2]
[346818456,1735306244962,-612.267,0.0001244,2]
[346818458,1735306244971,-2346.78,0.00012546,2]
[346818460,1735306244981,-2924.71,0.00012546,2]
[346818462,1735306244990,-1086.84,0.00012546,2]
[346818464,1735306244999,-500.0,0.00012546,2]
[346818466,1735306245009,-621.48,0.00012546,2]
[346818468,1735306245018,-500.0,0.00012546,2]
[346818470,1735306245027,-500.0,0.00012546,2]
[346818472,1735306245041,-885.34,0.00012547,2]
[346818474,1735306245050,-451.33,0.00012547,2]
[346818476,1735306245060,-500.0,0.00012547,2]
[346818478,1735306245069,-249.549576,0.00012547,2]
[346818480,1735306245079,-249.549576,0.00012547,2]
[346818482,1735306245088,-2501.17,0.00012547,2]
[346818484,1735306245097,-1006.38,0.00012547,2]
[346818486,1735306245106,-9636.11,0.00012547,2]
[346818488,1735306245115,-3598.43291911,0.00012721,2]
[346818490,1735306245125,-151.0,0.0001282,2]
[346818492,1735306245141,-185.088009,0.0001282,2]
[346818494,1735306245151,-185.088009,0.0001282,2]
[346818496,1735306245160,-2346.78,0.0001282,2]
[346818498,1735306245170,-2924.71,0.0001282,2]
[346818500,1735306245180,-1086.84,0.0001282,2]
[346818502,1735306245190,-500.0,0.0001282,2]
[346818504,1735306245199,-621.48,0.0001282,2]
[346818506,1735306245208,-500.0,0.0001282,2]
[346818508,1735306245219,-500.0,0.0001282,2]
[346818510,1735306245229,-151.0,0.0001282,2]
[346818512,1735306245239,-699.968967,0.00012821,2]
[346818514,1735306245248,-699.968967,0.00012821,2]
[346818516,1735306245259,-885.34,0.00012821,2]
[346818518,1735306245269,-579.21,0.00012821,2]
[346818521,1735306245278,-2501.17,0.00012821,2]
[346818523,1735306245290,-1006.38,0.00012821,2]
[346818525,1735306245299,-9636.11,0.00012821,2]
[346818527,1735306245309,-601.0493221,0.000129,2]
[346818529,1735306245319,-601.04932205,0.000129,2]
[346818530,1735306245328,-601.04932205,0.000129,2]
[346818532,1735306245338,-2924.71,0.00013093,2]
[346818534,1735306245348,-1086.84,0.00013093,2]
[346818537,1735306245358,-621.48,0.00013093,2]
[346818539,1735306245368,-500.0,0.00013093,2]
[346818541,1735306245377,-500.0,0.00013093,2]
[346818543,1735306245386,-323.460778,0.00013094,2]
[346818545,1735306245395,-323.460778,0.00013094,2]
[346818547,1735306245405,-2346.78,0.00013094,2]
[346818549,1735306245414,-500.0,0.00013094,2]
[346818551,1735306245423,-885.34,0.00013095,2]
[346818553,1735306245433,-151.0,0.00013095,2]
[346818555,1735306245443,-249.549576,0.00013095,2]
[346818557,1735306245452,-249.549576,0.00013095,2]
[346818558,1735306245461,-2501.17,0.00013095,2]
[346818561,1735306245470,-1006.38,0.00013095,2]
[346818563,1735306245480,-9636.11,0.00013095,2]
[346818565,1735306245489,-600.0,0.00013107,2]
[346818567,1735306245498,-753.93842715,0.00013243,2]
[346818569,1735306245508,-5247.00172206,0.00013276,2]
[346818571,1735306245517,-5000.0,0.00013276,2]
[346818573,1735306245526,-5000.0,0.00013276,2]
[346818575,1735306245537,-5000.0,0.00013276,2]
[346818577,1735306245546,-5000.0,0.00013276,2]
[346818579,1735306245555,-699.968967,0.00013276,2]
[346818581,1735306245564,-699.968967,0.00013276,2]
[346818583,1735306245573,-151.0,0.00013276,2]
[346818585,1735306245583,-185.088009,0.00013276,2]
[346818587,1735306245592,-185.088009,0.00013276,2]
[346818589,1735306245601,-151.0,0.00013276,2]
[346818591,1735306245611,-2924.71,0.00013367,2]
[346818593,1735306245620,-249.549576,0.00013367,2]
[346818595,1735306245629,-249.549576,0.00013367,2]
[346818597,1735306245638,-1086.84,0.00013367,2]
[346818599,1735306245648,-621.48,0.00013367,2]
[346818601,1735306245657,-500.0,0.00013367,2]
[346818603,1735306245666,-537.88375856,0.00013367,2]
[346818605,1735306245675,-323.460778,0.00013368,2]
[346818607,1735306245684,-323.460778,0.00013368,2]
[346818609,1735306245694,-2346.78,0.00013368,2]
[346818611,1735306245703,-415.0160089,0.00013368,2]
[346818613,1735306245712,-885.34,0.00013369,2]
[346818615,1735306245721,-151.0,0.00013369,2]
[346818617,1735306245731,-2501.17,0.00013369,2]
[346818619,1735306245740,-1006.38,0.00013369,2]
[346818621,1735306245749,-9636.11,0.00013369,2]
[346818623,1735306245759,-622.7801134,0.00013464,2]
[346818625,1735306245768,-10577.48588835,0.00013599,2]
[346818627,1735306245779,-183.58420123,0.00013599,2]
[346818629,1735306245790,-151.0,0.00013599,2]
[346818631,1735306245799,-2000.0,0.000136,2]
[346818633,1735306245807,-350.90119,0.000136,4]
[346818635,1735306245817,-185.088009,0.00013641,2]
[346818637,1735306245826,-185.088009,0.00013641,2]
[346818639,1735306245836,-2924.71,0.00013641,2]
[346818641,1735306245845,-1086.84,0.00013641,2]
[346818643,1735306245855,-621.48,0.00013641,2]
[346818645,1735306245865,-500.0,0.00013641,2]
[346818664,1735306245999,-2346.78,0.00013642,2]
[346818666,1735306246010,-699.968967,0.00013643,2]
[346818668,1735306246020,-699.968967,0.00013643,2]
[346818670,1735306246029,-885.34,0.00013643,2]
[346818672,1735306246046,-323.460778,0.00013643,2]
[346818674,1735306246055,-323.460778,0.00013643,2]
[346818676,1735306246064,-249.549576,0.00013643,2]
[346818679,1735306246074,-249.549568,0.00013643,2]
[346818681,1735306246084,-2501.17,0.00013643,2]
[346818683,1735306246094,-1006.38,0.00013643,2]
[346818685,1735306246106,-9636.11,0.00013643,2]
[346818687,1735306246116,-352.3665978,0.00013671,2]
[346818689,1735306246125,-352.3665978,0.00013671,2]
[346818691,1735306246138,-352.3665978,0.00013671,2]
[346818693,1735306246148,-352.3665978,0.00013671,2]
[346818695,1735306246157,-500.0,0.00013698,2]
[346818697,1735306246167,-501.0,0.00013698,2]
[346818699,1735306246176,-53.01207901,0.00013699,2]
[346818701,1735306246187,-153.0,0.00013699,2]
[346818703,1735306246197,-153.0,0.00013699,2]
[346818705,1735306246207,-153.0,0.00013699,2]
[346818707,1735306246217,-153.0,0.00013699,2]
[346818709,1735306246227,-153.0,0.00013699,2]
[346818711,1735306246236,-153.0,0.00013699,2]
[346818713,1735306246246,-2331.311952,0.00013699,2]
[346818715,1735306246256,-187.231805,0.00013699,2]
[346818717,1735306246265,-187.231805,0.00013699,2]
[346818719,1735306246275,-187.231805,0.00013699,2]
[346818721,1735306246286,-187.231805,0.00013699,2]
[346818723,1735306246295,-187.231805,0.00013699,2]
[346818725,1735306246304,-187.231805,0.00013699,2]
[346818727,1735306246313,-3994.293737,0.00013699,2]
[346818729,1735306246323,-15836.9591035,0.00013699,2]
[346818731,1735306246332,-166.691,0.00013699,2]
[346818733,1735306246341,-187.231805,0.00013699,2]
[346818735,1735306246350,-187.231805,0.00013699,2]
[346818737,1735306246360,-699.968967,0.00013699,2]
[346818739,1735306246369,-699.968967,0.00013699,2]
[346818741,1735306246378,-699.968967,0.00013699,2]
[346818743,1735306246387,-699.968967,0.00013699,2]
[346818745,1735306246397,-500.0,0.00013699,2]
[346818747,1735306246406,-500.0,0.00013699,2]
[346818749,1735306246415,-500.0,0.00013699,2]
[346818751,1735306246424,-150.94740406,0.00013699,2]
[346818753,1735306246433,-150.14,0.00013699,2]
[346818755,1735306246443,-150.14,0.00013699,2]
[346818757,1735306246452,-500.0,0.00013699,2]
[346818759,1735306246461,-185.088009,0.00013699,2]
[346818761,1735306246471,-185.088009,0.00013699,2]
[346818763,1735306246481,-185.088009,0.00013699,2]
[346818765,1735306246490,-185.088009,0.00013699,2]
[346818767,1735306246500,-185.088009,0.00013699,2]
[346818769,1735306246510,-185.088009,0.00013699,2]
[346818771,1735306246519,-323.460778,0.00013699,2]
[346818774,1735306246528,-323.460778,0.00013699,2]
[346818776,1735306246539,-323.460778,0.00013699,2]
[346818778,1735306246549,-323.460778,0.00013699,2]
[346818780,1735306246562,-500.0,0.00013699,2]
[346818782,1735306246571,-150.14,0.00013699,2]
[346818784,1735306246582,-500.0,0.00013699,2]
[346818786,1735306246591,-500.0,0.00013699,2]
[346818788,1735306246601,-500.0,0.00013699,2]
[346818790,1735306246610,-203.32592074,0.00013699,2]
[346818792,1735306246619,-159.3230159,0.00013699,2]
[346818794,1735306246629,-500.0,0.00013699,2]
[346818796,1735306246638,-165.63648417,0.00013699,2]
[346818798,1735306246648,-172.83165214,0.00013699,2]
[346818800,1735306246657,-150.14,0.00013699,2]
[346818802,1735306246667,-500.0,0.00013699,2]
[346818804,1735306246676,-500.0,0.00013699,2]
[346818806,1735306246686,-150.14,0.00013699,2]
[346818808,1735306246695,-150.14,0.00013699,2]
[346818809,1735306246704,-184.92095985,0.00013699,2]
[346818810,1735306246713,-500.0,0.00013699,2]
[346818811,1735306246723,-500.0,0.00013699,2]
[346818812,1735306246732,-500.0,0.00013699,2]
[346818813,1735306246741,-500.0,0.00013699,2]
[346818814,1735306246750,-500.0,0.00013699,2]
[346818815,1735306246760,-500.0,0.00013699,2]
[346818816,1735306246769,-500.0,0.00013699,2]
[346818817,1735306246779,-500.0,0.00013699,2]
[346818818,1735306246790,-500.0,0.00013699,2]
[346818819,1735306246799,-500.0,0.00013699,2]
[346818820,1735306246809,-500.0,0.00013699,2]
[346818821,1735306246817,-500.0,0.00013699,2]
[346818822,1735306246826,-500.0,0.00013699,2]
[346818823,1735306246835,-500.0,0.00013699,2]
[346818824,1735306246844,-500.0,0.00013699,2]
[346818825,1735306246854,-500.0,0.00013699,2]
[346818826,1735306246863,-500.0,0.00013699,2]
[346818827,1735306246872,-500.0,0.00013699,2]
[346818828,1735306246882,-500.0,0.00013699,2]
[346818829,1735306246891,-500.0,0.00013699,2]
[346818830,1735306246901,-500.0,0.00013699,2]
[346818831,1735306246910,-500.0,0.00013699,2]
[346818832,1735306246919,-500.0,0.00013699,2]
[346818834,1735306246928,-500.0,0.00013699,2]
[346818836,1735306246938,-500.0,0.00013699,2]
[346818838,1735306246947,-500.0,0.00013699,2]
[346818840,1735306246957,-500.0,0.00013699,2]
[346818842,1735306246967,-500.0,0.00013699,2]
[346818844,1735306246977,-500.0,0.00013699,2]
[346818847,1735306246987,-500.0,0.00013699,2]
[346818849,1735306246997,-500.0,0.00013699,2]
[346818851,1735306247007,-500.0,0.00013699,2]
[346818853,1735306247016,-500.0,0.00013699,2]
[346818855,1735306247026,-500.0,0.00013699,2]
[346818857,1735306247037,-500.0,0.00013699,2]
[346818859,1735306247047,-500.0,0.00013699,2]
[346818861,1735306247057,-500.0,0.00013699,2]
[346818863,1735306247067,-500.0,0.00013699,2]
[346818865,1735306247076,-500.0,0.00013699,2]
[346818867,1735306247086,-500.0,0.00013699,2]
[346818869,1735306247096,-500.0,0.00013699,2]
[346818871,1735306247106,-500.0,0.00013699,2]
[346818873,1735306247122,-500.0,0.00013699,2]
[346818875,1735306247143,-500.0,0.00013699,2]
[346818877,1735306247159,-151.0,0.000137,2]
[346818879,1735306247169,-323.460778,0.00013721,2]
[346818881,1735306247179,-323.460786,0.00013721,2]
[346818883,1735306247189,-151.0,0.000138,2]
[346818885,1735306247199,-666.0,0.00013873,2]
[346818887,1735306247208,-452.0020794,0.0001388,2]
[346818889,1735306247217,-160.0,0.00013899,2]
[346818891,1735306247227,-36540.70673157,0.000139,2]
[346818893,1735306247236,-151.0,0.000139,2]
[346818895,1735306247245,-187.231805,0.000139,2]
[346818897,1735306247255,-187.231805,0.000139,2]
[346818899,1735306247264,-699.968967,0.000139,2]
[346818901,1735306247273,-699.968967,0.000139,2]
[346818903,1735306247284,-185.088009,0.000139,2]
[346818905,1735306247293,-185.088009,0.000139,2]
[346818906,1735306247303,-2924.71,0.00013915,2]
[346818909,1735306247313,-1086.84,0.00013915,2]
[346818911,1735306247326,-621.48,0.00013915,2]
[346818913,1735306247336,-385.13,0.00013915,2]
[346818915,1735306247345,-2346.78,0.00013916,2]
[346818917,1735306247355,-885.34,0.00013917,2]
[346818919,1735306247365,-2501.17,0.00013917,2]
[346818921,1735306247374,-1006.38,0.00013917,2]
[346818923,1735306247384,-9636.11,0.00013917,2]
[346818925,1735306247393,-500.0,0.00013973,2]
[346818927,1735306247403,-500.0,0.00013973,2]
[346818929,1735306247413,-500.0,0.00013973,2]
[346818931,1735306247422,-198.85456958,0.00013973,2]
[346818933,1735306247432,-400.0,0.00013973,2]
[346818935,1735306247441,-500.0,0.00013973,2]
[346818937,1735306247452,-500.0,0.00013973,2]
[346818939,1735306247462,-650.50768991,0.00013973,2]
[346818941,1735306247472,-300.09603356,0.00013973,2]
[346818943,1735306247481,-150.14,0.00013973,2]
[346818945,1735306247491,-621.25266116,0.00013973,2]
[346818947,1735306247500,-500.0,0.00013973,2]
[346818949,1735306247509,-500.76409973,0.00013973,2]
[346818951,1735306247519,-708.81955808,0.00013973,2]
[346818953,1735306247528,-500.0,0.00013973,2]
[346818955,1735306247539,-500.0,0.00013973,2]
[346818957,1735306247549,-154.82200445,0.00013973,2]
[346818959,1735306247558,-500.0,0.00013973,2]
[346818961,1735306247568,-800.63265831,0.00013973,2]
[346818963,1735306247578,-150.14,0.00013973,2]
[346818965,1735306247588,-500.0,0.00013973,2]
[346818967,1735306247597,-160.3462879,0.00013999,2]
[346818969,1735306247607,-1879222.65634903,0.00014,2]
[346818984,1735306247740,-946.92335873,0.00014,2]
[346819001,1735306247899,-353.19040272,9.437e-05,2]
[346819003,1735306247909,-500.0,0.00011999,2]
[346819005,1735306247919,-500.0,0.00012273,2]
[346819007,1735306247928,-500.0,0.00013641,2]
[346819009,1735306247939,-31215.85772228,0.00014,2]
[346824749,1735306622812,201.4177886,8.986e-05,2]
[346824750,1735306625889,250.0,8.577e-05,2]
[346824751,1735306637697,201.4177886,8.986e-05,2]
[346824752,1735306652549,201.4177886,8.986e-05,2]
[346824753,1735306676153,201.4177886,8.986e-05,2]
[346824755,1735307005740,319.0263002,8.641e-05,2]
[346824756,1735307055199,11525.0361182,8.6e-05,2]
[346824757,1735307067770,201.4177886,8.986e-05,2]
[346824760,1735307228918,201.4177886,8.532e-05,2]
[346824761,1735307245111,-201.4177886,9.077e-05,2]
[346824762,1735307245137,-201.4177886,9.169e-05,2]
[346824763,1735307245162,-300.0,9.53e-05,2]
[346824764,1735307245185,-500.0,9.531e-05,2]
[346824765,1735307245208,-500.0,9.531e-05,2]
[346824766,1735307245234,-500.0,9.531e-05,2]
[346824767,1735307245258,-500.0,9.531e-05,2]
[346824768,1735307245280,-500.0,9.531e-05,2]
[346824769,1735307245303,-500.0,9.531e-05,2]
[346824770,1735307245325,-500.0,9.531e-05,2]
[346824771,1735307245351,-500.0,9.531e-05,2]
[346824772,1735307245374,-500.0,9.531e-05,2]
[346824773,1735307245397,-500.0,9.531e-05,2]
[346824774,1735307245419,-500.0,9.531e-05,2]
[346824775,1735307245442,-500.0,9.531e-05,2]
[346824776,1735307245468,-500.0,9.531e-05,2]
[346824777,1735307245491,-500.0,9.531e-05,2]
[346824778,1735307245514,-500.0,9.531e-05,2]
[346824779,1735307245537,-500.0,9.531e-05,2]